bitfinex-derivatives/quotes_BNBF0:USTF0_20250904
["timestamp","ask_amount","ask_price","bid_price","bid_amount"]
[1756946746516,0.20304983,857.42,856.79,0.58379916]
[1756946746717,0.20304983,857.42,856.69,1.855]
[1756946747017,0.20304983,857.42,856.7,0.58380481]
[1756946747213,0.20304983,857.42,856.71,0.58380481]
[1756946747411,0.20304983,857.42,856.72,0.58380481]
[1756946747613,0.20304983,857.42,856.73,0.58380481]
[1756946747914,0.20304983,857.42,856.74,0.58380481]
[1756946748117,0.20304983,857.42,856.75,0.58380481]
[1756946748315,0.20304983,857.42,856.76,0.58380481]
[1756946748513,0.20304983,857.42,856.77,0.58380481]
[1756946748714,0.20304983,857.42,856.78,0.58380481]
[1756946749016,0.20304983,857.42,856.69,1.855]
[1756946749216,0.20304983,857.42,856.7,0.58380476]
[1756946749513,0.20304983,857.42,856.71,0.58380476]
[1756946749716,0.20304983,857.42,856.7,1.803]
[1756946749717,0.20304983,857.42,856.72,0.58380476]
[1756946749914,0.20304983,857.42,856.73,0.58380476]
[1756946750119,0.20304983,857.42,856.74,0.58380476]
[1756946750318,0.20304983,857.42,856.75,0.58380476]
[1756946750514,0.20304983,857.42,856.76,0.58380476]
[1756946750815,0.20304983,857.42,856.77,0.58380476]
[1756946751018,0.20304983,857.42,856.7,1.803]
[1756946751219,0.20304983,857.42,856.71,0.5838047]
[1756946751417,0.20304983,857.42,856.72,0.5838047]
[1756946751615,0.20304983,857.42,856.73,0.5838047]
[1756946751815,0.20304983,857.42,856.74,0.5838047]
[1756946752019,0.20304983,857.42,856.75,0.5838047]
[1756946752217,0.20304983,857.42,856.76,0.5838047]
[1756946752420,0.20304983,857.42,856.77,0.5838047]
[1756946752617,0.20304983,857.42,856.7,1.803]
[1756946752817,0.20304983,857.42,856.71,0.5838047]
[1756946753016,0.20304983,857.42,856.72,0.5838047]
[1756946753220,0.20304983,857.42,856.73,0.5838047]
[1756946753420,0.20304983,857.42,856.74,0.5838047]
[1756946753620,0.20304983,857.42,856.75,0.5838047]
[1756946753920,0.20304983,857.42,856.76,0.5838047]
[1756946754217,0.20304983,857.42,856.77,0.5838047]
[1756946754415,0.20304983,857.42,856.7,1.803]
[1756946754617,0.20304983,857.42,856.71,0.58380476]
[1756946754817,0.20304983,857.42,856.72,0.58380476]
[1756946755020,0.20304983,857.42,856.73,0.58380476]
[1756946755320,0.20304983,857.42,856.74,0.58380476]
[1756946755518,0.20304983,857.42,856.75,0.58380476]
[1756946755722,0.20304983,857.42,856.76,0.58380476]
[1756946755922,0.20304983,857.42,856.77,0.58380476]
[1756946756122,0.20304983,857.42,856.7,1.803]
[1756946756417,0.20304983,857.42,856.71,0.58380476]
[1756946756619,0.20304983,857.42,856.72,0.58380476]
[1756946756817,0.20304983,857.42,856.73,0.58380476]
[1756946757122,0.20304983,857.42,856.74,0.58380476]
[1756946757421,0.20304983,857.42,856.75,0.58380476]
[1756946757622,0.20304983,857.42,856.76,0.58380476]
[1756946757820,0.20304983,857.42,856.77,0.58380476]
[1756946758121,0.20304983,857.42,856.78,0.58380476]
[1756946758322,0.20304983,857.42,856.7,1.803]
[1756946758516,0.20304983,857.42,856.71,0.58380498]
[1756946758818,0.20304983,857.42,856.72,0.58380498]
[1756946759018,0.20304983,857.42,856.73,0.58380498]
[1756946759216,0.20304983,857.42,856.74,0.58380498]
[1756946759418,0.20304983,857.42,856.75,0.58380498]
[1756946759617,0.20304983,857.42,856.76,0.58380498]
[1756946759920,0.20304983,857.42,856.77,0.58380498]
[1756946760120,0.20304983,857.42,856.78,0.58380498]
[1756946760318,0.20304983,857.42,856.77,1.811]
[1756946760518,0.20304983,857.42,856.78,0.58379966]
[1756946760818,0.20304983,857.42,856.77,1.811]
[1756946761023,0.20304983,857.42,856.78,0.58379954]
[1756946761224,0.20304983,857.42,856.77,1.811]
[1756946761422,0.20304983,857.42,856.78,0.58379954]
[1756946761621,0.20304983,857.42,856.77,1.811]
[1756946761823,0.20304983,857.42,856.78,0.58379954]
[1756946762024,0.20304983,857.42,856.77,1.811]
[1756946762226,0.20304983,857.42,856.78,0.58379954]
[1756946762424,0.20304983,857.42,856.77,1.811]
[1756946784242,0.20304983,857.42,856.7,1.803]
[1756946787247,0.20304983,857.42,856.71,1.462]
[1756946789750,2.6281651,857.65,856.71,1.462]
[1756946789949,2.6281651,857.67,856.71,1.462]
[1756946790151,0.20304509,857.25,856.71,1.462]
[1756946790353,2.6281651,857.67,856.71,1.462]
[1756946790553,0.20304391,857.44,856.71,1.462]
[1756946795957,0.20304391,857.44,856.72,1.699]
[1756946832883,0.20304391,857.44,856.73,1.258]
[1756946838287,0.20304391,857.44,856.74,0.58386776]
[1756946838488,0.20304391,857.44,856.73,1.258]
[1756946838784,0.20304391,857.44,856.74,0.58386776]
[1756946838989,0.20304391,857.44,856.73,1.258]
[1756946839288,0.20304391,857.44,856.74,0.58386776]
[1756946839489,0.20304391,857.44,856.73,1.258]
[1756946839789,0.20304391,857.44,856.74,0.58386776]
[1756946840085,0.20304391,857.44,856.73,1.258]
[1756946840284,0.20304391,857.44,856.74,0.58386776]
[1756946840487,0.20304391,857.44,856.73,1.258]
[1756946840684,0.20304391,857.44,856.74,0.58386776]
[1756946840987,0.20304391,857.44,856.75,0.58386793]
[1756946841290,0.20304391,857.44,856.73,1.258]
[1756946841589,0.20304391,857.44,856.74,0.58389598]
[1756946841886,0.20304391,857.44,856.75,0.58389598]
[1756946842086,0.20304391,857.44,856.73,1.258]
[1756946842289,0.20304391,857.44,856.74,0.58389609]
[1756946842489,0.20304391,857.44,856.73,1.258]
[1756946842687,0.20304391,857.44,856.74,0.58389609]
[1756946842889,0.20304391,857.44,856.73,1.258]
[1756946843085,0.20304391,857.44,856.74,0.58389609]
[1756946843288,0.20304391,857.44,856.73,1.258]
[1756946858505,0.20304391,857.44,856.74,1.269]
[1756946893936,0.20304391,857.44,856.75,1.397]
[1756946912460,2.6281651,857.31,856.75,1.397]
[1756946913164,2.6281651,857.43,856.75,1.397]
[1756946914565,2.6281651,857.42,856.75,1.397]
[1756946916568,2.6281651,857.42,856.76,1.708]
[1756946918166,2.6281651,857.41,856.76,1.708]
[1756946920867,0.20304391,857.44,856.76,1.708]
[1756946938486,0.20304391,857.44,856.77,1.769]
[1756946940082,2.6281651,857.35,856.77,1.769]
[1756946941588,2.6281651,857.36,856.77,1.769]
[1756946942183,2.6281651,857.37,856.77,1.769]
[1756946942588,2.6281651,857.35,856.77,1.769]
[1756946942884,2.6281651,857.35,856.03,0.78592942]
[1756946943083,2.6281651,857.36,856.04,1.32893841]
[1756946943286,2.6281651,857.36,856.05,1.32893841]
[1756946943485,2.6281651,857.36,856.06,1.32893841]
[1756946943684,2.6281651,857.37,856.07,1.32893841]
[1756946943885,2.6281651,857.37,856.08,1.32893841]
[1756946944085,2.6281651,857.37,856.09,1.32893841]
[1756946944284,2.6281651,857.37,856.1,1.32893841]
[1756946944487,2.6281651,857.37,856.11,1.32893841]
[1756946944688,2.6281651,857.34,856.12,1.32893841]
[1756946944889,2.6281651,857.34,856.13,1.32893841]
[1756946945089,2.6281651,857.34,856.14,1.32893841]
[1756946945385,2.6281651,857.32,856.15,1.32893841]
[1756946945591,2.6281651,857.32,856.16,1.32893841]
[1756946945889,2.6281651,857.32,856.17,1.32893841]
[1756946946089,2.6281651,857.32,856.18,1.32893841]
[1756946946285,2.6281651,857.32,856.19,1.32893841]
[1756946946485,2.6281651,857.32,856.15,1.218]
[1756946946486,2.6281651,857.32,856.2,1.32893841]
[1756946946690,2.6281651,857.32,856.21,2.64993841]
[1756946946889,2.6281651,857.32,856.22,1.32893841]
[1756946947093,2.6281651,857.32,856.23,1.32893841]
[1756946947287,2.6281651,857.32,856.24,1.32893841]
[1756946947487,2.6281651,857.32,856.25,1.32893841]
[1756946947789,2.6281651,857.31,856.26,1.32893841]
[1756946947986,2.6281651,857.31,856.27,1.32893841]
[1756946948192,2.6281651,857.31,856.28,0.58398689]
[1756946948389,2.6281651,857.29,856.29,0.58398689]
[1756946948592,2.6281651,857.29,856.3,0.58398689]
[1756946948794,2.6281651,857.29,856.21,1.321]
[1756946949092,2.6281651,857.29,856.22,1.32418793]
[1756946949389,2.6281651,857.29,856.23,1.32418793]
[1756946949595,2.6281651,857.29,856.24,1.32418793]
[1756946949794,2.6281651,857.29,856.25,1.32418793]
[1756946949993,2.6281651,857.29,856.26,1.32418793]
[1756946950190,2.6281651,857.29,856.27,1.32418793]
[1756946950393,2.6281651,857.29,856.28,0.58398684]
[1756946950691,2.6281651,857.29,856.29,0.58398684]
[1756946950994,2.6281651,857.29,856.3,0.58398684]
[1756946951193,2.6281651,857.29,856.31,0.58398684]
[1756946951392,2.6281651,857.29,856.21,1.321]
[1756946951592,2.6281651,857.27,856.22,1.32418896]
[1756946951897,2.6281651,857.27,856.23,1.32418896]
[1756946952101,2.6281651,857.27,856.24,1.32418896]
[1756946952302,2.6281651,857.27,856.25,1.32418896]
[1756946952502,2.6281651,857.36,856.26,1.32418896]
[1756946952804,2.6281651,857.36,856.27,2.1102551]
[1756946953098,0.20304391,857.44,856.28,1.32418896]
[1756946953301,0.20304391,857.44,856.29,1.32418896]
[1756946953501,0.20304391,857.44,856.3,1.32418896]
[1756946953699,0.20304391,857.44,856.31,1.32418896]
[1756946953897,0.20304391,857.44,856.32,1.32418896]
[1756946954096,0.20304391,857.44,856.33,1.32418896]
[1756946954301,0.20304391,857.44,856.34,1.32418896]
[1756946954498,0.20304391,857.44,856.35,1.32418896]
[1756946954698,0.20304391,857.44,856.36,1.32418896]
[1756946954900,0.20304391,857.44,856.37,1.32418896]
[1756946955100,0.20304391,857.44,856.38,1.32418896]
[1756946955297,0.20304391,857.44,856.39,1.32418896]
[1756946955495,0.20304391,857.44,856.4,1.32418896]
[1756946955698,0.20304391,857.44,856.41,1.32418896]
[1756946955901,0.20304391,857.44,856.42,1.32418896]
[1756946956198,0.20304391,857.44,856.43,1.32418896]
[1756946956501,0.20304391,857.44,856.44,1.32418896]
[1756946956702,0.20304391,857.44,856.45,1.32418896]
[1756946956997,0.20304391,857.44,856.46,1.32418896]
[1756946957202,0.20304391,857.44,856.47,1.32418896]
[1756946957401,0.20304391,857.44,856.48,1.32418896]
[1756946957602,0.20304391,857.44,856.49,1.32418896]
[1756946957897,0.20304391,857.44,856.5,1.32418896]
[1756946958099,0.20304391,857.44,856.51,1.32418896]
[1756946958300,0.20304391,857.44,856.52,1.32418896]
[1756946958600,0.20304391,857.44,856.53,1.32418896]
[1756946958803,0.20304391,857.44,856.54,1.32418896]
[1756946959000,0.20304391,857.44,856.55,1.32418896]
[1756946959203,0.20304391,857.44,856.56,1.32418896]
[1756946959402,0.20304391,857.44,856.57,1.32418896]
[1756946959603,0.20304391,857.44,856.58,0.58398684]
[1756946959800,0.20304391,857.44,856.59,0.58398684]
[1756946960003,0.20304391,857.44,856.6,0.58398684]
[1756946960204,0.20304391,857.44,856.61,0.58398684]
[1756946960400,0.20304391,857.44,856.62,0.58398684]
[1756946960603,0.20304391,857.44,856.22,0.78606614]
[1756946960802,0.20304391,857.44,856.23,1.3244856]
[1756946961002,0.20304391,857.44,856.24,1.3244856]
[1756946961203,0.20304391,857.44,856.25,1.3244856]
[1756946961405,0.20304391,857.44,856.26,1.3244856]
[1756946961706,0.20304391,857.44,856.27,1.3244856]
[1756946961904,0.20304391,857.44,856.28,1.3244856]
[1756946962203,0.20304391,857.44,856.29,1.3244856]
[1756946962407,0.20304391,857.44,856.3,1.3244856]
[1756946962707,0.20304391,857.44,856.31,1.3244856]
[1756946962904,0.20304391,857.44,856.32,1.3244856]
[1756946963108,0.20304391,857.44,856.33,1.3244856]
[1756946963305,0.20304391,857.44,856.34,1.3244856]
[1756946963505,0.20304391,857.44,856.35,1.3244856]
[1756946963703,0.20304391,857.44,856.21,1.321]
[1756946963704,0.20304391,857.44,856.36,1.3244856]
[1756946963909,0.20304391,857.44,856.37,1.3244856]
[1756946964109,0.20304391,857.44,856.38,1.3244856]
[1756946964305,0.20304391,857.44,856.39,1.3244856]
[1756946964507,0.20304391,857.44,856.4,1.3244856]
[1756946964806,0.20304391,857.44,856.41,1.3244856]
[1756946965112,0.20304391,857.44,856.42,1.3244856]
[1756946965407,0.20304391,857.44,856.43,1.3244856]
[1756946965605,0.20304391,857.44,856.44,1.3244856]
[1756946965809,0.20304391,857.44,856.45,1.3244856]
[1756946966106,0.20304391,857.44,856.46,1.3244856]
[1756946966307,0.20304391,857.44,856.47,1.3244856]
[1756946966510,0.20304391,857.44,856.48,1.3244856]
[1756946966709,0.20304391,857.44,856.49,1.3244856]
[1756946966907,0.20304391,857.44,856.5,0.58398656]
[1756946967211,0.20304391,857.44,856.51,0.58398656]
[1756946967409,0.20304391,857.44,856.52,0.58398656]
[1756946967709,0.20304391,857.44,856.53,0.58398656]
[1756946967911,0.20304391,857.44,856.54,0.58398656]
[1756946968211,0.20304391,857.44,856.21,1.321]
[1756946968409,0.20304391,857.44,856.22,1.32450766]
[1756946968613,0.20304391,857.44,856.23,1.32450766]
[1756946968815,0.20304391,857.44,856.24,1.32450766]
[1756946969012,0.20304391,857.44,856.25,1.32450766]
[1756946969214,0.20304391,857.44,856.26,1.32450766]
[1756946969414,0.20304391,857.44,856.27,1.32450766]
[1756946969615,0.20304391,857.44,856.28,1.32450766]
[1756946969915,0.20304391,857.44,856.29,1.32450766]
[1756946970216,0.20304391,857.44,856.3,1.32450766]
[1756946970412,0.20304391,857.44,856.31,1.32450766]
[1756946970713,0.20304391,857.44,856.32,1.32450766]
[1756946970912,0.20304391,857.44,856.33,1.32450766]
[1756946971112,0.20304391,857.44,856.34,0.58398665]
[1756946971418,0.20304391,857.44,856.35,1.32452486]
[1756946971618,0.20304391,857.44,856.36,1.32452486]
[1756946971818,0.20304391,857.44,856.37,1.32452486]
[1756946972017,0.20304391,857.44,856.38,1.32452486]
[1756946972222,0.20304391,857.44,856.39,1.32452486]
[1756946972520,0.20304391,857.44,856.4,1.32452486]
[1756946972721,0.20304391,857.44,856.41,1.32452486]
[1756946973016,0.20304391,857.44,856.42,1.32452486]
[1756946973221,0.20304391,857.44,856.43,1.32452486]
[1756946973417,0.20304391,857.44,856.44,1.32452486]
[1756946973717,0.20304391,857.44,856.45,1.32452486]
[1756946973922,0.20304391,857.44,856.46,1.32452486]
[1756946974219,0.20304391,857.44,856.47,1.32452486]
[1756946974417,0.20304391,857.44,856.48,1.32452486]
[1756946974719,0.20304391,857.44,856.49,1.32452486]
[1756946974920,0.20304391,857.44,856.5,1.32452486]
[1756946975220,0.20304391,857.44,856.51,1.32452486]
[1756946975416,0.20304391,857.44,856.52,0.58398665]
[1756946975719,0.20304391,857.44,856.53,0.58398665]
[1756946975920,0.20304391,857.44,856.54,0.58398665]
[1756946976121,0.20304391,857.44,856.55,0.58398665]
[1756946976420,0.20304391,857.44,856.56,0.58398665]
[1756946976618,0.20304391,857.44,856.21,1.321]
[1756946976816,0.20304391,857.44,856.22,1.32456719]
[1756946977014,0.20304391,857.44,856.23,1.32456719]
[1756946977218,0.20304391,857.44,856.24,1.32456719]
[1756946977518,0.20304391,857.44,856.25,1.32456719]
[1756946977821,0.20304391,857.44,856.26,1.32456719]
[1756946978021,0.20304391,857.44,856.27,1.32456719]
[1756946978218,0.20304391,857.44,856.28,1.32456719]
[1756946978421,0.20304391,857.44,856.29,1.32456719]
[1756946978619,0.20304391,857.44,856.21,1.321]
[1756946978620,0.20304391,857.44,856.3,1.32456719]
[1756946978922,0.20304391,857.44,856.31,1.32456719]
[1756946979122,0.20304391,857.44,856.32,1.32456719]
[1756946979423,0.20304391,857.44,856.33,1.32456719]
[1756946979619,0.20304391,857.44,856.34,1.32456719]
[1756946979823,0.20304391,857.44,856.35,1.32456719]
[1756946980018,0.20304391,857.44,856.36,1.32456719]
[1756946980222,0.20304391,857.44,856.37,1.32456719]
[1756946980418,0.20304391,857.44,856.38,1.32456719]
[1756946980622,0.20304391,857.44,856.39,1.32456719]
[1756946980820,0.20304391,857.44,856.4,1.32456719]
[1756946981025,0.20304391,857.44,856.41,1.32456719]
[1756946981324,0.20304391,857.44,856.42,1.32456719]
[1756946981620,0.20304391,857.44,856.43,1.32456719]
[1756946981826,0.20304391,857.44,856.44,1.32456719]
[1756946982019,0.20304391,857.44,856.45,1.32456719]
[1756946982224,0.20304391,857.44,856.46,1.32456719]
[1756946982526,0.20304391,857.44,856.47,1.32456719]
[1756946982721,0.20304391,857.44,856.48,1.32456719]
[1756946982924,0.20304391,857.44,856.49,1.32456719]
[1756946983122,0.20304391,857.44,856.5,1.32456719]
[1756946983326,0.20304391,857.44,856.51,0.58398732]
[1756946983527,0.20304391,857.44,856.52,0.58398732]
[1756946983727,0.20304391,857.44,856.53,0.58398732]
[1756946983928,0.20304391,857.44,856.54,0.58398732]
[1756946984128,0.20304391,857.44,856.55,0.58398732]
[1756946984330,0.20304391,857.44,856.56,0.58398732]
[1756946984525,0.20304391,857.44,856.21,1.321]
[1756946984723,0.20304391,857.44,856.22,1.31972676]
[1756946984927,0.20304391,857.44,856.23,1.31972676]
[1756946985125,0.20304391,857.44,856.24,1.31972676]
[1756946985325,0.20304391,857.44,856.25,1.31972676]
[1756946985524,0.20304391,857.44,856.26,1.31972676]
[1756946985827,0.20304391,857.44,856.27,1.31972676]
[1756946986025,0.20304391,857.44,856.28,1.31972676]
[1756946986225,0.20304391,857.44,856.29,1.31972676]
[1756946986526,0.20304391,857.44,856.3,1.31972676]
[1756946986729,0.20304391,857.44,856.31,1.31972676]
[1756946987029,0.20304391,857.44,856.32,1.31972676]
[1756946987329,0.20304391,857.44,856.33,1.31972676]
[1756946987626,0.20304391,857.44,856.34,1.31972676]
[1756946987830,0.20304391,857.44,856.35,1.31972676]
[1756946988131,0.20304391,857.44,856.36,1.31972676]
[1756946988427,0.20304391,857.44,856.37,1.31972676]
[1756946988630,0.20304391,857.44,856.38,1.31972676]
[1756946988830,0.20304391,857.44,856.39,1.31972676]
[1756946989127,0.20304391,857.44,856.4,1.31972676]
[1756946989327,0.20304391,857.44,856.41,1.31972676]
[1756946989526,0.20304391,857.44,856.42,1.31972676]
[1756946989826,0.20304391,857.44,856.43,1.31972676]
[1756946990028,0.20304391,857.44,856.44,1.31972676]
[1756946990231,0.20304391,857.44,856.45,1.31972676]
[1756946990431,0.20304391,857.44,856.46,1.31972676]
[1756946990627,2.6281651,857.98,856.47,1.31972676]
[1756946990827,0.2030599,857.2,856.48,1.31972676]
[1756946991128,2.6281651,857.98,856.49,1.31972676]
[1756946991428,0.20305813,857.03,856.5,1.31972676]
[1756946991632,2.6281651,857.98,856.51,0.58398682]
[1756946991832,0.20305753,857.61,856.52,0.58398682]
[1756946992130,0.20305753,857.61,856.53,0.58398682]
[1756946992330,0.20305753,857.61,856.54,0.58398682]
[1756946992531,0.20305753,857.61,856.55,0.58398682]
[1756946992732,0.20305753,857.61,856.49,1.584]
[1756946993732,0.20305753,857.61,856.5,0.58398313]
[1756946993932,0.20305753,857.61,856.51,1.31944271]
[1756946994133,0.20305753,857.61,856.52,1.31936431]
[1756946994331,0.20305753,857.61,856.53,0.58390679]
[1756946994528,0.20305753,857.61,856.54,0.58390679]
[1756946994726,0.20305753,857.61,856.55,0.58390679]
[1756946994932,0.20305753,857.61,856.49,1.584]
[1756946995130,0.20305753,857.61,856.5,0.5839069]
[1756946995429,0.20305753,857.61,856.51,0.5839069]
[1756946995632,0.20305753,857.61,856.52,0.5839069]
[1756946995831,0.20305753,857.61,856.53,0.5839069]
[1756946996029,0.20305753,857.61,856.54,0.5839069]
[1756946996233,0.20305753,857.61,856.55,0.5839069]
[1756946996529,0.20305753,857.61,856.49,1.584]
[1756946996733,0.20305753,857.61,856.5,0.58390702]
[1756946996930,0.20305753,857.61,856.51,0.58390702]
[1756946997130,0.20305753,857.61,856.52,0.58390702]
[1756946997333,0.20305753,857.61,856.53,0.58390702]
[1756946997530,0.20305753,857.61,856.54,0.58390702]
[1756946997733,0.20305753,857.61,856.49,1.584]
[1756946997930,0.20305753,857.61,856.5,0.58390702]
[1756946998129,0.20305753,857.61,856.51,0.58390702]
[1756946998335,0.20305753,857.61,856.52,0.58390702]
[1756946998535,0.20305753,857.61,856.53,0.58390702]
[1756946998830,0.20305753,857.61,856.49,1.584]
[1756946999034,0.20305753,857.61,856.5,0.58390702]
[1756946999330,0.20305753,857.61,856.51,0.58390702]
[1756946999531,0.20305753,857.61,856.52,0.58390702]
[1756946999732,0.20305753,857.61,856.53,0.58390702]
[1756946999932,0.20305753,857.61,856.49,1.584]
[1756947000134,0.20305753,857.61,856.5,0.58390713]
[1756947000333,0.20305753,857.61,856.51,0.58390713]
[1756947000531,0.20305753,857.61,856.52,0.58390713]
[1756947000735,0.20305753,857.61,856.53,0.58390713]
[1756947000937,0.20305753,857.61,856.49,1.584]
[1756947001232,0.20305753,857.61,856.5,0.58390713]
[1756947001436,0.20305753,857.61,856.51,0.58390713]
[1756947001636,0.20305753,857.61,856.52,0.58390713]
[1756947001837,0.20305753,857.61,856.49,1.584]
[1756947002033,0.20305753,857.61,856.5,0.58390713]
[1756947002237,0.20305753,857.61,856.51,0.58390713]
[1756947002437,0.20305753,857.61,856.52,0.58390713]
[1756947002638,0.20305753,857.61,856.49,1.584]
[1756947002839,0.20305753,857.61,856.5,0.5839074]
[1756947003035,0.20305753,857.61,856.51,0.5839074]
[1756947003236,0.20305753,857.61,856.52,0.5839074]
[1756947003439,0.20305753,857.61,856.53,0.5839074]
[1756947003639,0.20305753,857.61,856.54,0.5839074]
[1756947003935,0.20305753,857.61,856.49,1.584]
[1756947004140,0.20305753,857.61,856.5,0.58390763]
[1756947004341,0.20305753,857.61,856.51,0.58390763]
[1756947004539,0.20305753,857.61,856.52,0.58390763]
[1756947004735,0.20305753,857.61,856.53,0.58390763]
[1756947004938,0.20305753,857.61,856.49,1.584]
[1756947005138,0.20305753,857.61,856.5,0.58390774]
[1756947005336,0.20305753,857.61,856.51,0.58390774]
[1756947005540,0.20305753,857.61,856.52,0.58390774]
[1756947005738,0.20305753,857.61,856.53,0.58390774]
[1756947005938,0.20305753,857.61,856.54,0.58390774]
[1756947006139,0.20305753,857.61,856.49,1.584]
[1756947006435,0.20305753,857.61,856.5,0.58391378]
[1756947006635,0.20305753,857.61,856.51,0.58391378]
[1756947006834,0.20305753,857.61,856.52,0.58391378]
[1756947007036,0.20305753,857.61,856.53,0.58391378]
[1756947007240,0.20305753,857.61,856.54,0.58391378]
[1756947007437,0.20305753,857.61,856.49,1.584]
[1756947007640,0.20305753,857.61,856.5,0.58391384]
[1756947007838,0.20305753,857.61,856.51,0.58391384]
[1756947008042,0.20305753,857.61,856.52,0.58391384]
[1756947008242,0.20305753,857.61,856.53,0.58391384]
[1756947008440,0.20305753,857.61,856.49,1.584]
[1756947008644,0.20305753,857.61,856.5,0.58391384]
[1756947008845,0.20305753,857.61,856.51,0.58391384]
[1756947009045,0.20305753,857.61,856.52,0.58391384]
[1756947009244,0.20305753,857.61,856.53,0.58391384]
[1756947009441,0.20305753,857.61,856.54,0.58391384]
[1756947009642,0.20305753,857.61,856.49,1.584]
[1756947009844,0.20305753,857.61,856.5,0.58392494]
[1756947010042,0.20305753,857.61,856.51,0.58392494]
[1756947010347,0.20305753,857.61,856.52,0.58392494]
[1756947010646,0.20305753,857.61,856.49,1.584]
[1756947010946,0.20305753,857.61,856.5,0.58392505]
[1756947011140,0.20305753,857.61,856.51,0.58392505]
[1756947011342,0.20305753,857.61,856.52,0.58392505]
[1756947011642,0.20305753,857.61,856.49,1.584]
[1756947011845,0.20305753,857.61,856.5,0.58392505]
[1756947012142,0.20305753,857.61,856.51,0.58392505]
[1756947012342,0.20305753,857.61,856.52,0.58392505]
[1756947012541,0.20305753,857.61,856.49,1.584]
[1756947012747,0.20305753,857.61,856.5,0.58392505]
[1756947012942,0.20305753,857.61,856.51,0.58392505]
[1756947013144,0.20305753,857.61,856.52,0.58392505]
[1756947013447,0.20305753,857.61,856.53,0.58392505]
[1756947013646,0.20305753,857.61,856.49,1.584]
[1756947013844,0.20305753,857.61,856.5,0.58392505]
[1756947014044,0.20305753,857.61,856.51,0.58392505]
[1756947014243,0.20305753,857.61,856.52,0.58392505]
[1756947014448,0.20305753,857.61,856.53,0.58392505]
[1756947014645,0.20305753,857.61,856.49,1.584]
[1756947014849,0.20305753,857.61,856.5,0.58392505]
[1756947015047,0.20305753,857.61,856.51,0.58392505]
[1756947015250,0.20305753,857.61,856.52,0.58392505]
[1756947015448,0.20305753,857.61,856.49,1.584]
[1756947015648,0.20305753,857.61,856.5,0.58392505]
[1756947015853,0.20305753,857.61,856.51,0.58392505]
[1756947016055,0.20305753,857.61,856.52,0.58392505]
[1756947016256,0.20305753,857.61,856.49,1.584]
[1756947016552,0.20305753,857.61,856.5,0.58392505]
[1756947016756,0.20305753,857.61,856.51,0.58392505]
[1756947017057,0.20305753,857.61,856.49,1.584]
[1756947017254,0.20305753,857.61,856.5,0.58392505]
[1756947017457,0.20305753,857.61,856.51,0.58392505]
[1756947017656,0.20305753,857.61,856.49,1.584]
[1756947017854,0.20305753,857.61,856.5,0.58392471]
[1756947018052,0.20305753,857.61,856.51,0.58392471]
[1756947018254,0.20305753,857.61,856.49,1.584]
[1756947018459,0.20305753,857.61,856.5,0.58392466]
[1756947018659,0.20305753,857.61,856.51,0.58392466]
[1756947018858,0.20305753,857.61,856.49,1.584]
[1756947019056,0.20305753,857.61,856.5,0.58392466]
[1756947019360,0.20305753,857.61,856.49,1.584]
[1756947019661,0.20305753,857.61,856.5,0.58392466]
[1756947019856,0.20305753,857.61,856.49,1.584]
[1756947020058,0.20305753,857.61,856.5,0.58392477]
[1756947020256,0.20305753,857.61,856.49,1.584]
[1756947020456,0.20305753,857.61,856.5,0.58392482]
[1756947020757,0.20305753,857.61,856.49,1.584]
[1756947020957,0.20305753,857.61,856.5,0.58392477]
[1756947021156,0.20305753,857.61,856.49,1.584]
[1756947021355,0.20305753,857.61,856.5,0.58392477]
[1756947021560,0.20305753,857.61,856.49,1.584]
[1756947021760,0.20305753,857.61,856.5,0.58392482]
[1756947021958,0.20305753,857.61,856.49,1.584]
[1756947022157,0.20305753,857.61,856.5,0.58392521]
[1756947022357,0.20305753,857.61,856.49,1.584]
[1756947022556,0.20305753,857.61,856.5,0.58392499]
[1756947022863,0.20305753,857.61,856.49,1.584]
[1756947023158,0.20305753,857.61,856.5,0.58392482]
[1756947023457,0.20305753,857.61,856.49,1.584]
[1756947023662,0.20305753,857.61,856.5,0.58392477]
[1756947023859,0.20305753,857.61,856.49,1.584]
[1756947024058,0.20305753,857.61,856.5,0.58392466]
[1756947024261,0.20305753,857.61,856.49,1.584]
[1756947024460,0.20305753,857.61,856.5,0.58392466]
[1756947024664,0.20305753,857.61,856.49,1.584]
[1756947024960,0.20305753,857.61,856.5,0.58392466]
[1756947025264,0.20305753,857.61,856.49,1.584]
[1756947025477,0.20305753,857.61,856.5,0.58392438]
[1756947025661,0.20305753,857.61,856.49,1.584]
[1756947025859,0.20305753,857.61,856.5,0.58392438]
[1756947026059,0.20305753,857.61,856.49,1.584]
[1756947026259,0.20305753,857.61,856.5,0.58392438]
[1756947026559,0.20305753,857.61,856.49,1.584]
[1756947026756,0.20305753,857.61,856.5,0.58392438]
[1756947026960,0.20305753,857.61,856.49,1.584]
[1756947027162,0.20305753,857.61,856.5,0.58392432]
[1756947027461,0.20305753,857.61,856.51,0.58392416]